[Event "Festival Groningen-A 2024"]
[Site "Groningen"]
[Date "2024.12.21"]
[Round "1.13"]
[White "Smeets, Kobe"]
[Black "Duson, Robin"]
[Result "1-0"]
[ECO "C95"]
[WhiteElo "2349"]
[BlackElo "2159"]
[Annotator "RC"]
[PlyCount "63"]
[EventDate "2024.12.21"]
[EventType "swiss"]
[EventCountry "NED"]
[SourceTitle "playchess.com"]
[Source "ChessBase"]
[SourceQuality "1"]
[TimeControl "40/5400+30:1800+30"]

1. e4 {[%emt 0:00:04]} e5 {[%emt 0:00:12]} 2. Nf3 {[%emt 0:00:15]} Nc6 {[%emt 0:00:13]} 3. Bb5 {[%emt 0:00:13]} a6 {[%emt 0:00:27]} 4. Ba4 {[%emt 0:00:02]} Nf6 {[%emt 0:00:23]} 5. O-O {[%emt 0:00:07]} Be7 {[%emt 0:00:24]} 6. Re1 {[%emt 0:00:33]} b5 {[%emt 0:00:11]} 7. Bb3 {[%emt 0:00:02]} d6 {[%emt 0:00:24]} 8. c3 {[%emt 0:00:07]} O-O {[%emt 0:00:11]} 9. h3 {[%emt 0:00:06]} Nb8 {[%emt 0:00:55]} 10. d4 {[%emt 0:00:09]} Nbd7 {[%emt 0:00:19]} 11. Nbd2 {[%emt 0:00:06]} Bb7 {[%emt 0:00:32]} 12. Bc2 {[%emt 0:00:14]} Re8 {[%emt 0:01:10]} 13. Nf1 {[%emt 0:00:04]} Bf8 {[%emt 0:00:34]} 14. Ng3 {[%emt 0:00:07]} g6 {[%emt 0:00:39]} 15. a4 {[%emt 0:02:41]} Bg7 {[%emt 0:03:58]} 16. Bd3 {[%emt 0:00:53]} b4 {[%emt 0:10:14]} 17. dxe5 {[%emt 0:04:53]} Nxe5 {[%emt 0:04:30]} 18. Nxe5 {[%emt 0:00:34]} Rxe5 {[%emt 0:02:41]} 19. cxb4 {[%emt 0:05:10]} d5 {[%emt 0:09:04]} 20. f4 {[%emt 0:02:58]} Rxe4 {[%emt 0:07:22]} 21. Nxe4 {[%emt 0:00:51]} dxe4 {[%emt 0:04:01]} 22. Bc4 {[%emt 0:00:17]} Qe7 {[%emt 0:04:20]} 23. Qb3 {[%emt 0:02:36]} Rd8 {[%emt 0:05:51]} 24. Be3 {[%emt 0:10:46]} Nd5 {[%emt 0:04:34]} 25. Bc5 {[%emt 0:04:41]} Qh4 {[%emt 0:01:51]} 26. Rad1 {[%emt 0:04:12]} Nxf4 {[%emt 0:08:01]} 27. Bxf7+ {[%emt 0:17:37]} Kh8 {[%emt 0:00:09]} 28. Qe3 {[%emt 0:01:34]} Nd3 {[%emt 0:04:42]} 29. Rf1 {[%emt 0:11:05]} Nxb2 {[%emt 0:01:58]} 30. Qf4 {[%emt 0:01:40]} Qf6 {[%emt 0:08:30]} 31. Qxf6 {[%emt 0:00:08]} Bxf6 {[%emt 0:00:05]} 32. Rxd8+ {[%emt 0:00:15]} 1-0

[Event "Festival Groningen-A 2024"]
[Site "Groningen"]
[Date "2024.12.21"]
[Round "1.14"]
[White "De Boer, Bas"]
[Black "Kollen, Zyon"]
[Result "0-1"]
[ECO "D35"]
[WhiteElo "2157"]
[BlackElo "2344"]
[Annotator "RC"]
[PlyCount "86"]
[EventDate "2024.12.21"]
[EventType "swiss"]
[EventCountry "NED"]
[SourceTitle "playchess.com"]
[Source "ChessBase"]
[SourceQuality "1"]
[TimeControl "40/5400+30:1800+30"]

1. d4 {[%emt 0:00:03]} Nf6 {[%emt 0:00:09]} 2. c4 {[%emt 0:00:06]} e6 {[%emt 0:00:03]} 3. Nf3 {[%emt 0:00:06]} d5 {[%emt 0:01:56]} 4. cxd5 {[%emt 0:00:07]} exd5 {[%emt 0:00:04]} 5. Nc3 {[%emt 0:00:05]} c6 {[%emt 0:00:35]} 6. Qc2 {[%emt 0:00:07]} Bd6 {[%emt 0:01:46]} 7. Bg5 {[%emt 0:00:12]} Be6 {[%emt 0:04:48]} 8. e3 {[%emt 0:00:20]} Nbd7 {[%emt 0:00:20]} 9. Bd3 {[%emt 0:01:04]} Qc7 {[%emt 0:01:37]} 10. Bh4 {[%emt 0:07:14]} h6 {[%emt 0:05:55]} 11. Bg3 {[%emt 0:05:04]} Bxg3 {[%emt 0:00:12]} 12. hxg3 {[%emt 0:00:01]} O-O-O {[%emt 0:04:41]} 13. O-O-O {[%emt 0:02:19]} Ne8 {[%emt 0:06:01]} 14. Kb1 {[%emt 0:00:35]} Nd6 {[%emt 0:02:13]} 15. Ka1 {[%emt 0:02:42]} Rhe8 {[%emt 0:02:22]} 16. Rc1 {[%emt 0:02:19]} Kb8 {[%emt 0:02:16]} 17. Nd2 {[%emt 0:09:05]} Rc8 {[%emt 0:03:47]} 18. Ne2 {[%emt 0:03:13]} c5 {[%emt 0:16:04]} 19. dxc5 {[%emt 0:04:14]} Nxc5 {[%emt 0:00:09]} 20. Nb3 {[%emt 0:02:21]} Nxd3 {[%emt 0:10:23]} 21. Qxd3 {[%emt 0:00:08]} Qb6 {[%emt 0:01:00]} 22. Qd4 {[%emt 0:07:39]} Ne4 {[%emt 0:03:19]} 23. Qxb6 {[%emt 0:04:24]} axb6 {[%emt 0:00:01]} 24. Rxc8+ {[%emt 0:00:14]} Bxc8 {[%emt 0:04:44]} 25. Rf1 {[%emt 0:00:23]} Bf5 {[%emt 0:03:22]} 26. Nf4 {[%emt 0:10:11]} Rd8 {[%emt 0:01:48]} 27. Nd4 {[%emt 0:01:15]} Bh7 {[%emt 0:01:04]} 28. g4 {[%emt 0:02:24]} g5 {[%emt 0:03:09]} 29. Nh3 {[%emt 0:04:36]} Re8 {[%emt 0:05:09]} 30. Re1 {[%emt 0:06:45]} Nc5 {[%emt 0:04:30]} 31. Rh1 {[%emt 0:06:31]} Be4 {[%emt 0:05:57]} 32. Rh2 {[%emt 0:03:16]} Nd3 {[%emt 0:01:20]} 33. Nb5 {[%emt 0:03:56]} Ne1 {[%emt 0:03:33]} 34. Nd6 {[%emt 0:02:44]} Rd8 {[%emt 0:00:28]} 35. Nxf7 {[%emt 0:08:24]} Rc8 {[%emt 0:00:14]} 36. b3 {[%emt 0:00:06]} Rc1+ {[%emt 0:00:45]} 37. Kb2 {[%emt 0:00:02]} Nd3+ {[%emt 0:00:23]} 38. Ka3 {[%emt 0:00:38]} Rc5 {[%emt 0:00:18]} 39. b4 {[%emt 0:00:14]} Rc3+ {[%emt 0:00:10]} 40. Ka4 {[%emt 0:00:14]} Nb2+ {[%emt 0:00:13]} 41. Kb5 {[%emt 0:30:41]} Bd3+ {[%emt 0:30:22]} 42. Kxb6 {[%emt 0:00:33]} Rc6+ {[%emt 0:00:07]} 43. Ka5 {[%emt 0:00:03]} b6# {[%emt 0:00:20]} 0-1

[Event "Festival Groningen-A 2024"]
[Site "Groningen"]
[Date "2024.12.21"]
[Round "1.15"]
[White "Labruyere, Roger"]
[Black "Nicolai, Amir"]
[Result "1-0"]
[ECO "B33"]
[WhiteElo "2344"]
[BlackElo "2156"]
[Annotator "RC"]
[PlyCount "103"]
[EventDate "2024.12.21"]
[EventType "swiss"]
[EventCountry "NED"]
[SourceTitle "playchess.com"]
[Source "ChessBase"]
[SourceQuality "1"]
[TimeControl "40/5400+30:1800+30"]

1. e4 {[%emt 0:03:06]} c5 {[%emt 0:00:06]} 2. Nf3 {[%emt 0:00:04]} Nc6 {[%emt 0:00:05]} 3. d4 {[%emt 0:00:08]} cxd4 {[%emt 0:00:05]} 4. Nxd4 {[%emt 0:00:03]} Nf6 {[%emt 0:00:05]} 5. Nc3 {[%emt 0:00:19]} e5 {[%emt 0:00:07]} 6. Ndb5 {[%emt 0:01:07]} d6 {[%emt 0:00:12]} 7. Bg5 {[%emt 0:01:55]} a6 {[%emt 0:00:09]} 8. Na3 {[%emt 0:00:04]} b5 {[%emt 0:00:04]} 9. Nd5 {[%emt 0:01:23]} Be7 {[%emt 0:00:11]} 10. Bxf6 {[%emt 0:00:09]} Bxf6 {[%emt 0:00:04]} 11. c3 {[%emt 0:00:13]} O-O {[%emt 0:02:28]} 12. Nc2 {[%emt 0:00:26]} Rb8 {[%emt 0:00:08]} 13. Be2 {[%emt 0:01:22]} g6 {[%emt 0:05:38]} 14. Bg4 {[%emt 0:06:42]} Bb7 {[%emt 0:10:36]} 15. O-O {[%emt 0:04:18]} Bg5 {[%emt 0:04:15]} 16. a4 {[%emt 0:23:00]} bxa4 {[%emt 0:03:45]} 17. Rxa4 {[%emt 0:03:30]} Ne7 {[%emt 0:06:02]} 18. b4 {[%emt 0:03:24]} Nxd5 {[%emt 0:18:30]} 19. exd5 {[%emt 0:00:21]} Qc7 {[%emt 0:00:10]} 20. Qd3 {[%emt 0:09:48]} f5 {[%emt 0:04:39]} 21. Be2 {[%emt 0:01:05]} e4 {[%emt 0:02:41]} 22. Qg3 {[%emt 0:01:55]} Bf6 {[%emt 0:02:11]} 23. c4 {[%emt 0:02:03]} Bxd5 {[%emt 0:01:39]} 24. Rxa6 {[%emt 0:10:57]} Be5 {[%emt 0:19:33]} 25. Qb3 {[%emt 0:00:12]} Bb7 {[%emt 0:02:14]} 26. Ra3 {[%emt 0:03:35]} Kh8 {[%emt 0:04:05]} 27. h3 {[%emt 0:05:00]} g5 {[%emt 0:02:47]} 28. Rd1 {[%emt 0:01:07]} Qg7 {[%emt 0:01:09]} 29. c5 {[%emt 0:01:44]} d5 {[%emt 0:01:04]} 30. Ra7 {[%emt 0:00:58]} Ra8 {[%emt 0:03:05]} 31. Rxa8 {[%emt 0:02:25]} Bxa8 {[%emt 0:00:12]} 32. b5 {[%emt 0:00:32]} d4 {[%emt 0:01:32]} 33. c6 {[%emt 0:00:50]} Rb8 {[%emt 0:04:38]} 34. Qe6 {[%emt 0:01:49]} d3 {[%emt 0:01:09]} 35. Bxd3 {[%emt 0:00:04]} exd3 {[%emt 0:00:07]} 36. Rxd3 {[%emt 0:00:02]} Qf6 {[%emt 0:01:53]} 37. Qxf6+ {[%emt 0:04:20]} Bxf6 {[%emt 0:00:01]} 38. c7 {[%emt 0:00:09]} Rc8 {[%emt 0:00:09]} 39. b6 {[%emt 0:00:05]} Be4 {[%emt 0:01:34]} 40. f3 {[%emt 0:00:48]} Bb7 {[%emt 0:00:50]} 41. Ne3 {[%emt 0:33:28]} Be7 {[%emt 0:03:21]} 42. Kh1 {[%emt 0:00:00]} Rf8 {[%emt 0:11:42]} 43. Rd7 {[%emt 0:00:00]} Bc5 {[%emt 0:01:45]} 44. Nc4 {[%emt 0:00:00]} Rc8 {[%emt 0:06:34]} 45. Kh2 {[%emt 0:00:00]} f4 {[%emt 0:02:39]} 46. h4 {[%emt 0:00:00]} gxh4 {[%emt 0:02:29]} 47. Nd6 {[%emt 0:00:00]} Bxd6 {[%emt 0:01:34]} 48. Rxd6 {[%emt 0:00:00]} Kg7 {[%emt 0:00:04]} 49. Kh3 {[%emt 0:00:00]} Rf8 {[%emt 0:00:53]} 50. Rd8 {[%emt 0:00:00]} Rf6 {[%emt 0:00:25]} 51. Rb8 {[%emt 0:00:00]} Ba6 {[%emt 0:01:04]} 52. b7 {[%emt 0:00:00]} 1-0

[Event "Festival Groningen-A 2024"]
[Site "Groningen"]
[Date "2024.12.21"]
[Round "1.16"]
[White "Grooten, Tommy"]
[Black "Koster, Ramon"]
[Result "1/2-1/2"]
[ECO "D11"]
[WhiteElo "2153"]
[BlackElo "2330"]
[Annotator "RC"]
[PlyCount "65"]
[EventDate "2024.12.21"]
[EventType "swiss"]
[EventCountry "NED"]
[SourceTitle "playchess.com"]
[Source "ChessBase"]
[SourceQuality "1"]
[TimeControl "40/5400+30:1800+30"]

1. d4 {[%emt 1:31:00]} d5 {[%emt 1:31:00]} 2. c4 {[%emt 0:00:30]} c6 {[%emt 0:00:30]} 3. Nf3 {[%emt 0:00:30]} Nf6 {[%emt 0:00:30]} 4. g3 {[%emt 0:00:30]} Bf5 {[%emt 0:00:30]} 5. Nc3 {[%emt 0:00:30]} e6 {[%emt 0:00:30]} 6. Qb3 {[%emt 0:00:30]} Qb6 {[%emt 0:00:30]} 7. c5 {[%emt 0:00:30]} Qxb3 {[%emt 0:00:30]} 8. axb3 {[%emt 0:00:30]} Na6 {[%emt 0:00:30]} 9. Ra4 {[%emt 0:00:00]} Bc2 {[%emt 0:00:00]} 10. Bf4 {[%emt 0:00:00]} Ne4 {[%emt 0:00:00]} 11. Nxe4 {[%emt 0:00:00]} Bxe4 {[%emt 0:00:00]} 12. Rg1 {[%emt 0:00:00]} f6 {[%emt 0:00:00]} 13. Nd2 {[%emt 0:00:00]} e5 {[%emt 0:00:00]} 14. Nxe4 {[%emt 0:00:00]} exf4 {[%emt 0:00:00]} 15. Nc3 {[%emt 0:00:00]} fxg3 {[%emt 0:00:00]} 16. Rxg3 {[%emt 0:00:00]} Nc7 {[%emt 0:00:00]} 17. e3 {[%emt 0:00:00]} a6 {[%emt 0:00:00]} 18. Bd3 {[%emt 0:00:00]} Kf7 {[%emt 0:00:00]} 19. Kd2 {[%emt 0:00:00]} Be7 {[%emt 0:00:00]} 20. Ra1 {[%emt 0:00:00]} g6 {[%emt 0:00:00]} 21. h4 {[%emt 0:00:00]} Raf8 {[%emt 0:00:00]} 22. h5 {[%emt 0:00:00]} f5 {[%emt 0:00:00]} 23. Rag1 {[%emt 0:00:00]} Rhg8 {[%emt 0:00:00]} 24. Ne2 {[%emt 0:00:00]} Ne6 {[%emt 0:00:00]} 25. f4 {[%emt 0:00:00]} Bf6 {[%emt 0:00:00]} 26. R1g2 {[%emt 0:00:00]} Rb8 {[%emt 0:00:00]} 27. b4 {[%emt 0:00:00]} Bh4 {[%emt 0:00:16]} 28. Rh3 {[%emt 0:00:00]} Be7 {[%emt 0:00:26]} 29. Ng1 {[%emt 0:00:00]} Ng7 {[%emt 0:03:42]} 30. hxg6+ {[%emt 0:00:00]} hxg6 {[%emt 0:00:03]} 31. Nf3 {[%emt 0:00:00]} Bf6 {[%emt 0:00:06]} 32. Rh6 {[%emt 0:00:00]} Ne6 {[%emt 0:00:35]} 33. Rh7+ {[%emt 0:12:30]} 1/2-1/2

[Event "Festival Groningen-A 2024"]
[Site "Groningen"]
[Date "2024.12.21"]
[Round "1.17"]
[White "Ratsma, Midas"]
[Black "Schilstra, Laurens"]
[Result "0-1"]
[ECO "B49"]
[WhiteElo "2326"]
[BlackElo "2150"]
[Annotator "RC"]
[PlyCount "76"]
[EventDate "2024.12.21"]
[EventType "swiss"]
[EventCountry "NED"]
[SourceTitle "playchess.com"]
[Source "ChessBase"]
[SourceQuality "1"]
[TimeControl "40/5400+30:1800+30"]

1. e4 {[%emt 0:00:02]} c5 {[%emt 0:00:12]} 2. Nf3 {[%emt 0:00:04]} Nc6 {[%emt 0:00:22]} 3. d4 {[%emt 0:00:04]} cxd4 {[%emt 0:00:07]} 4. Nxd4 {[%emt 0:00:04]} e6 {[%emt 0:00:07]} 5. Nc3 {[%emt 0:00:09]} a6 {[%emt 0:00:13]} 6. Be2 {[%emt 0:00:25]} Qc7 {[%emt 0:00:11]} 7. O-O {[%emt 0:00:13]} Nf6 {[%emt 0:00:06]} 8. Be3 {[%emt 0:00:19]} b6 {[%emt 0:02:39]} 9. f4 {[%emt 0:00:30]} h5 {[%emt 0:01:43]} 10. e5 {[%emt 0:05:06]} Ng4 {[%emt 0:00:20]} 11. Bxg4 {[%emt 0:00:08]} hxg4 {[%emt 0:00:09]} 12. Qxg4 {[%emt 0:01:09]} Bb7 {[%emt 0:00:10]} 13. Qg3 {[%emt 0:21:30]} Na5 {[%emt 0:01:36]} 14. Bf2 {[%emt 0:12:33]} Nc4 {[%emt 0:01:38]} 15. b3 {[%emt 0:02:14]} Nd2 {[%emt 0:04:10]} 16. Rfd1 {[%emt 0:06:41]} Bb4 {[%emt 0:01:08]} 17. Nde2 {[%emt 0:01:55]} Nf3+ {[%emt 0:03:46]} 18. gxf3 {[%emt 0:00:26]} Bxc3 {[%emt 0:08:03]} 19. Rab1 {[%emt 0:04:03]} Bb4 {[%emt 0:03:44]} 20. c3 {[%emt 0:01:44]} Be7 {[%emt 0:00:24]} 21. Bd4 {[%emt 0:02:35]} Qc6 {[%emt 1:10:12]} 22. Rd3 {[%emt 0:04:47]} O-O-O {[%emt 0:00:00]} 23. Qf2 {[%emt 0:00:45]} g5 {[%emt 0:00:00]} 24. Bxb6 {[%emt 0:10:25]} Rdg8 {[%emt 0:00:00]} 25. f5 {[%emt 0:02:05]} exf5 {[%emt 0:00:00]} 26. Rbd1 {[%emt 0:05:40]} g4 {[%emt 0:00:00]} 27. Ng3 {[%emt 0:03:05]} f4 {[%emt 0:00:00]} 28. Nf5 {[%emt 0:02:02]} Bh4 {[%emt 0:00:00]} 29. Nxh4 {[%emt 0:02:26]} g3 {[%emt 0:00:00]} 30. hxg3 {[%emt 0:03:55]} Rxh4 {[%emt 0:00:00]} 31. Rxd7 {[%emt 0:01:19]} Rxg3+ {[%emt 0:00:00]} 32. Qxg3 {[%emt 0:03:47]} Qxb6+ {[%emt 0:00:00]} 33. Qf2 {[%emt 0:00:04]} Rh1+ {[%emt 0:00:00]} 34. Kxh1 {[%emt 0:00:05]} Qxf2 {[%emt 0:00:00]} 35. Rd8+ {[%emt 0:00:04]} Kc7 {[%emt 0:00:00]} 36. R1d7+ {[%emt 0:00:12]} Kb6 {[%emt 0:00:00]} 37. Rb8 {[%emt 0:00:31]} Qxf3+ {[%emt 0:00:00]} 38. Kg1 {[%emt 0:00:03]} Qg2# {[%emt 0:00:00]} 0-1

[Event "Festival Groningen-A 2024"]
[Site "Groningen"]
[Date "2024.12.21"]
[Round "1.18"]
[White "Duijker, Rick"]
[Black "Dolzhykova, Kateryna"]
[Result "0-1"]
[ECO "A45"]
[WhiteElo "2146"]
[BlackElo "2322"]
[Annotator "RC"]
[PlyCount "180"]
[EventDate "2024.12.21"]
[EventType "swiss"]
[EventCountry "NED"]
[SourceTitle "playchess.com"]
[Source "ChessBase"]
[SourceQuality "1"]
[TimeControl "40/5400+30:1800+30"]

1. d4 {[%emt 0:00:08]} Nf6 {[%emt 0:00:09]} 2. Bg5 {[%emt 0:00:09]} Ne4 {[%emt 0:00:46]} 3. Bf4 {[%emt 0:00:10]} c5 {[%emt 0:00:08]} 4. f3 {[%emt 0:00:21]} Qa5+ {[%emt 0:00:12]} 5. c3 {[%emt 0:00:27]} Nf6 {[%emt 0:00:04]} 6. d5 {[%emt 0:00:15]} e6 {[%emt 0:00:16]} 7. e4 {[%emt 0:00:24]} exd5 {[%emt 0:00:07]} 8. exd5 {[%emt 0:00:18]} d6 {[%emt 0:00:12]} 9. Qe2+ {[%emt 0:05:42]} Be7 {[%emt 0:00:07]} 10. Bxd6 {[%emt 0:01:52]} Nxd5 {[%emt 0:04:02]} 11. Bxe7 {[%emt 0:07:05]} Nxe7 {[%emt 0:00:13]} 12. Qb5+ {[%emt 0:00:22]} Qxb5 {[%emt 0:00:42]} 13. Bxb5+ {[%emt 0:00:05]} Nbc6 {[%emt 0:02:50]} 14. Nd2 {[%emt 0:02:00]} O-O {[%emt 0:02:36]} 15. O-O-O {[%emt 0:05:08]} Ne5 {[%emt 0:05:43]} 16. Nc4 {[%emt 0:04:57]} a6 {[%emt 0:10:01]} 17. Nb6 {[%emt 0:08:11]} axb5 {[%emt 0:10:43]} 18. Nxa8 {[%emt 0:00:20]} Bf5 {[%emt 0:00:02]} 19. Nb6 {[%emt 0:06:01]} Nd3+ {[%emt 0:00:13]} 20. Rxd3 {[%emt 0:00:34]} Bxd3 {[%emt 0:00:00]} 21. Nh3 {[%emt 0:04:00]} Ng6 {[%emt 0:01:53]} 22. Rd1 {[%emt 0:14:14]} Bf5 {[%emt 0:06:34]} 23. Rd5 {[%emt 0:02:14]} Bxh3 {[%emt 0:02:13]} 24. gxh3 {[%emt 0:00:06]} Nf4 {[%emt 0:00:07]} 25. Rd7 {[%emt 0:00:49]} Re8 {[%emt 0:04:29]} 26. Rxb7 {[%emt 0:06:31]} h5 {[%emt 0:00:10]} 27. Nd7 {[%emt 0:04:24]} Re1+ {[%emt 0:11:27]} 28. Kc2 {[%emt 0:01:11]} Re2+ {[%emt 0:01:06]} 29. Kb3 {[%emt 0:01:46]} c4+ {[%emt 0:00:24]} 30. Ka3 {[%emt 0:00:21]} Rxh2 {[%emt 0:00:11]} 31. Rb8+ {[%emt 0:10:04]} Kh7 {[%emt 0:00:05]} 32. Rxb5 {[%emt 0:00:05]} Rxh3 {[%emt 0:00:59]} 33. Kb4 {[%emt 0:07:10]} h4 {[%emt 0:04:43]} 34. a4 {[%emt 0:01:00]} Rxf3 {[%emt 0:03:42]} 35. Ne5 {[%emt 0:00:30]} Nd3+ {[%emt 0:07:16]} 36. Nxd3 {[%emt 0:03:41]} cxd3 {[%emt 0:00:02]} 37. Rh5+ {[%emt 0:00:29]} Kg6 {[%emt 0:00:02]} 38. Rxh4 {[%emt 0:00:40]} Kf5 {[%emt 0:03:17]} 39. a5 {[%emt 0:04:27]} Rf4+ {[%emt 0:01:24]} 40. Rxf4+ {[%emt 0:00:13]} Kxf4 {[%emt 0:00:02]} 41. a6 {[%emt 0:30:27]} d2 {[%emt 0:30:06]} 42. a7 {[%emt 0:00:05]} d1=Q {[%emt 0:00:06]} 43. a8=Q {[%emt 0:00:15]} Qd6+ {[%emt 0:00:11]} 44. Kc4 {[%emt 0:00:00]} g5 {[%emt 0:00:00]} 45. b4 {[%emt 0:00:00]} g4 {[%emt 0:00:00]} 46. b5 {[%emt 0:00:00]} g3 {[%emt 0:00:00]} 47. Qc6 {[%emt 0:00:00]} Ke5 {[%emt 0:00:00]} 48. Qf3 {[%emt 0:00:00]} Qg6 {[%emt 0:00:00]} 49. Qe3+ {[%emt 0:00:00]} Qe4+ {[%emt 0:00:00]} 50. Qxe4+ {[%emt 0:00:00]} Kxe4 {[%emt 0:00:00]} 51. b6 {[%emt 0:00:00]} g2 {[%emt 0:00:00]} 52. b7 {[%emt 0:00:00]} g1=Q {[%emt 0:00:00]} 53. b8=Q {[%emt 0:00:00]} Qf1+ {[%emt 0:00:00]} 54. Kc5 {[%emt 0:00:00]} Qf2+ {[%emt 0:00:00]} 55. Kc4 {[%emt 0:00:00]} Qa2+ {[%emt 0:00:00]} 56. Kc5 {[%emt 0:00:00]} Qd5+ {[%emt 0:00:00]} 57. Kb4 {[%emt 0:00:00]} f5 {[%emt 0:00:00]} 58. Qe8+ {[%emt 0:00:00]} Kd3 {[%emt 0:00:00]} 59. Qc8 {[%emt 0:00:00]} Qd6+ {[%emt 0:00:00]} 60. Kb5 {[%emt 0:00:30]} Qe5+ {[%emt 0:00:00]} 61. Kb4 {[%emt 0:00:14]} f4 {[%emt 0:00:00]} 62. Qh3+ {[%emt 0:01:05]} Qe3 {[%emt 0:00:00]} 63. Qf1+ {[%emt 0:00:43]} Ke4 {[%emt 0:00:00]} 64. Qc4+ {[%emt 0:00:37]} Kf3 {[%emt 0:00:00]} 65. Qf1+ {[%emt 0:00:31]} Kg3 {[%emt 0:00:00]} 66. c4 {[%emt 0:01:02]} f3 {[%emt 0:00:00]} 67. Kb5 {[%emt 0:01:14]} f2 {[%emt 0:00:00]} 68. c5 {[%emt 0:01:29]} Kh2 {[%emt 0:00:00]} 69. Qd1 {[%emt 0:03:49]} Qh3 {[%emt 0:00:00]} 70. Qd2 {[%emt 0:01:17]} Qg2 {[%emt 0:00:00]} 71. Qh6+ {[%emt 0:00:18]} Kg1 {[%emt 0:00:00]} 72. Qe3 {[%emt 0:00:02]} Qb7+ {[%emt 0:01:02]} 73. Ka5 {[%emt 0:00:49]} Qd5 {[%emt 0:02:06]} 74. Kb6 {[%emt 0:00:33]} Kg2 {[%emt 0:00:46]} 75. Qe2 {[%emt 0:00:20]} Qb3+ {[%emt 0:00:57]} 76. Ka6 {[%emt 0:01:35]} Qa4+ {[%emt 0:00:39]} 77. Kb7 {[%emt 0:00:04]} Qb4+ {[%emt 0:01:02]} 78. Kc6 {[%emt 0:00:20]} Qd4 {[%emt 0:02:15]} 79. Qc2 {[%emt 0:01:01]} Qf6+ {[%emt 0:00:29]} 80. Kb7 {[%emt 0:00:43]} Kg1 {[%emt 0:00:03]} 81. c6 {[%emt 0:00:46]} f1=Q {[%emt 0:00:40]} 82. Qc5+ {[%emt 0:00:32]} Kg2 {[%emt 0:00:50]} 83. Qc2+ {[%emt 0:00:47]} Kh3 {[%emt 0:00:41]} 84. Qh7+ {[%emt 0:00:35]} Kg3 {[%emt 0:00:09]} 85. Qg8+ {[%emt 0:00:18]} Kh4 {[%emt 0:00:22]} 86. Qh7+ {[%emt 0:00:07]} Kg5 {[%emt 0:00:07]} 87. Qg8+ {[%emt 0:00:18]} Kh6 {[%emt 0:00:07]} 88. Qb3 {[%emt 0:01:10]} Q1f3 {[%emt 0:00:15]} 89. Qc4 {[%emt 0:01:17]} Qe7+ {[%emt 0:00:14]} 90. Kb6 {[%emt 0:00:23]} Qfe3+ {[%emt 0:00:13]} 0-1

[Event "Festival Groningen-A 2024"]
[Site "Groningen"]
[Date "2024.12.21"]
[Round "1.19"]
[White "Elgersma, Onno"]
[Black "Van Helvoort, Rob"]
[Result "1-0"]
[ECO "B45"]
[WhiteElo "2322"]
[BlackElo "2135"]
[Annotator "RC"]
[PlyCount "87"]
[EventDate "2024.12.21"]
[EventType "swiss"]
[EventCountry "NED"]
[SourceTitle "playchess.com"]
[Source "ChessBase"]
[SourceQuality "1"]
[TimeControl "40/5400+30:1800+30"]

1. e4 {[%emt 0:00:05]} c5 {[%emt 0:00:11]} 2. Nf3 {[%emt 0:00:28]} e6 {[%emt 0:00:09]} 3. d4 {[%emt 0:02:02]} cxd4 {[%emt 0:00:07]} 4. Nxd4 {[%emt 0:00:03]} Nf6 {[%emt 0:00:15]} 5. Nc3 {[%emt 0:00:13]} Nc6 {[%emt 0:00:11]} 6. Be2 {[%emt 0:04:14]} Bb4 {[%emt 0:02:04]} 7. O-O {[%emt 0:00:14]} Bxc3 {[%emt 0:00:10]} 8. bxc3 {[%emt 0:00:19]} Nxe4 {[%emt 0:00:13]} 9. Nxc6 {[%emt 0:00:07]} dxc6 {[%emt 0:00:34]} 10. Bd3 {[%emt 0:00:19]} Nf6 {[%emt 0:05:03]} 11. Ba3 {[%emt 0:09:34]} b6 {[%emt 0:02:24]} 12. Qf3 {[%emt 0:03:25]} Qd5 {[%emt 0:12:39]} 13. Qg3 {[%emt 0:00:54]} Nh5 {[%emt 0:05:40]} 14. Qh4 {[%emt 0:06:30]} Nf6 {[%emt 0:00:19]} 15. Rfd1 {[%emt 0:14:47]} Qa5 {[%emt 0:15:07]} 16. Bb4 {[%emt 0:03:21]} Qh5 {[%emt 0:01:04]} 17. Qg3 {[%emt 0:01:35]} c5 {[%emt 0:03:39]} 18. Qxg7 {[%emt 0:21:54]} Ke7 {[%emt 0:00:12]} 19. Qxh8 {[%emt 0:03:51]} Bb7 {[%emt 0:01:14]} 20. Qg7 {[%emt 0:00:10]} Rg8 {[%emt 0:00:14]} 21. Qxg8 {[%emt 0:00:04]} Nxg8 {[%emt 0:00:08]} 22. Ba3 {[%emt 0:00:04]} Qg4 {[%emt 0:11:50]} 23. Bf1 {[%emt 0:00:13]} Qa4 {[%emt 0:02:57]} 24. Bc1 {[%emt 0:00:10]} Qxc2 {[%emt 0:01:21]} 25. Bg5+ {[%emt 0:00:46]} f6 {[%emt 0:00:41]} 26. Bd2 {[%emt 0:03:44]} Bc6 {[%emt 0:09:20]} 27. Rac1 {[%emt 0:03:19]} Qg6 {[%emt 0:02:38]} 28. c4 {[%emt 0:03:08]} Nh6 {[%emt 0:03:45]} 29. Bxh6 {[%emt 0:04:48]} Qxh6 {[%emt 0:00:02]} 30. Rc3 {[%emt 0:00:11]} Qf4 {[%emt 0:08:40]} 31. Ra3 {[%emt 0:01:48]} Qc7 {[%emt 0:00:16]} 32. Re1 {[%emt 0:02:48]} Qb7 {[%emt 0:04:55]} 33. Rh3 {[%emt 0:04:47]} Be4 {[%emt 0:00:38]} 34. Rhe3 {[%emt 0:00:25]} Bf5 {[%emt 0:00:19]} 35. Be2 {[%emt 0:01:29]} e5 {[%emt 0:05:28]} 36. f4 {[%emt 0:00:52]} Qa6 {[%emt 0:01:34]} 37. fxe5 {[%emt 0:00:18]} fxe5 {[%emt 0:00:08]} 38. Rxe5+ {[%emt 0:01:10]} Kf6 {[%emt 0:00:01]} 39. Re3 {[%emt 0:03:03]} Qxa2 {[%emt 0:01:11]} 40. g4 {[%emt 0:01:25]} Bg6 {[%emt 0:02:11]} 41. h4 {[%emt 0:03:17]} Qd2 {[%emt 0:07:59]} 42. Rf1+ {[%emt 0:01:40]} Kg7 {[%emt 0:00:10]} 43. Re7+ {[%emt 0:00:44]} Kg8 {[%emt 0:00:03]} 44. Rd1 {[%emt 0:03:12]} 1-0